bitfinex/quotes_SOLUSD_20251106
["timestamp","ask_amount","ask_price","bid_price","bid_amount"]
[1762419504156,0.7,159.55,159.51,13.65918358]
[1762419504758,10.36863292,159.55,159.51,12.96918358]
[1762419505138,4.1009713,159.54,159.51,6.7]
[1762419505540,4.1009713,159.54,159.51,7.39]
[1762419505941,9.66910257,159.54,159.51,7.39]
[1762419507048,0.7,159.55,159.51,13.65911802]
[1762419507049,10.36874337,159.55,159.51,13.65911802]
[1762419507367,9.66835237,159.56,159.52,0.69]
[1762419507541,10.36835237,159.56,159.52,0.69]
[1762419508046,9.66835237,159.56,159.52,6.95874948]
[1762419508250,6.96738107,159.56,159.52,6.95874948]
[1762419510475,36.45749753,159.59,159.53,0.69]
[1762419510476,3.4009713,159.58,159.53,0.69]
[1762419510680,4.1009713,159.58,159.53,0.69]
[1762419510860,3.4009713,159.58,159.53,0.69]
[1762419511044,4.1009713,159.57,159.53,0.69]
[1762419511444,6.26644942,159.58,159.53,0.69]
[1762419511741,9.66742072,159.58,159.53,6.95822311]
[1762419511967,0.7,159.57,159.53,6.95822311]
[1762419512454,4.1009713,159.57,159.53,6.95822311]
[1762419512649,6.26644942,159.58,159.54,0.69]
[1762419512854,3.4009713,159.58,159.54,0.69]
[1762419513052,0.2,159.59,159.54,0.69]
[1762419513380,6.46611294,159.59,159.54,0.69]
[1762419513547,0.2,159.59,159.54,4.0909713]
[1762419513941,0.2,159.59,159.55,0.69]
[1762419514144,4.3009713,159.59,159.55,0.69]
[1762419514452,3.6009713,159.59,159.55,0.69]
[1762419514651,0.2,159.59,159.56,6.26723489]
[1762419514863,0.2,159.59,159.55,6.95748599]
[1762419515375,0.2,159.59,159.56,0.69]
[1762419516869,0.2,159.59,159.57,6.26684213]
[1762419517258,0.2,159.59,159.58,0.7]
[1762419518071,0.2,159.59,159.57,6.26684213]
[1762419518251,0.2,159.59,159.55,6.7]
[1762419518453,3.6009713,159.59,159.56,0.7]
[1762419519846,3.6009713,159.59,159.56,6.96713348]
[1762419520572,0.2,159.59,159.56,6.96713348]
[1762419520773,3.6009713,159.59,159.56,6.96713348]
[1762419521155,3.6009713,159.59,159.57,0.7]
[1762419521861,0.2,159.59,159.57,0.7]
[1762419522255,0.67,159.58,159.55,6.7]
[1762419522576,3.6009713,159.59,159.56,0.7]
[1762419524274,9.86717253,159.59,159.56,0.7]
[1762419524649,3.6009713,159.59,159.56,0.7]
[1762419525157,3.6009713,159.59,159.56,6.96715733]
[1762419525762,3.6009713,159.59,159.56,6.26715733]
[1762419525969,3.6009713,159.59,159.57,0.7]
[1762419526276,3.6009713,159.59,159.56,6.26715733]
[1762419526277,0.2,159.59,159.56,0.7]
[1762419526767,4.2709713,159.59,159.56,0.7]
[1762419527176,3.6009713,159.59,159.56,0.7]
[1762419527476,3.6009713,159.59,159.56,6.96710563]
[1762419527981,0.2,159.59,159.57,10.48882769]
[1762419528456,0.2,159.59,159.56,28.63519286]
[1762419528657,0.2,159.59,159.58,0.7]
[1762419529462,0.2,159.59,159.58,6.96644942]
[1762419532774,0.2,159.59,159.58,20.15624841]
[1762419537962,0.2,159.59,159.58,26.85624841]
[1762419538968,0.2,159.59,159.58,23.45527711]
[1762419539286,0.2,159.59,159.58,12.96644942]
[1762419539662,0.2,159.59,159.58,6.7]
[1762419540279,0.2,159.59,159.57,6.96677713]
[1762419541386,0.2,159.59,159.57,0.7]
[1762419541687,0.2,159.59,159.57,6.96682283]
[1762419541892,0.2,159.59,159.54,46.05068421]
[1762419541893,3.4009713,159.58,159.54,20.592]
[1762419542187,3.4009713,159.58,159.43,22.67063628]
[1762419542188,20.592,159.53,159.4,7.28]
[1762419542375,6.8019426,159.55,159.45,0.7]
[1762419542376,3.4009713,159.48,159.45,0.7]
[1762419542566,3.4009713,159.49,159.45,0.7]
[1762419543085,20.592,159.52,159.45,0.7]
[1762419543385,20.592,159.48,159.45,0.7]
[1762419544166,23.9929713,159.48,159.45,0.7]
[1762419544362,23.9929713,159.48,159.43,9.78882769]
[1762419544363,3.4009713,159.47,159.43,10.48882769]
[1762419544779,24.7029713,159.48,159.44,0.7]
[1762419544983,20.592,159.49,159.44,0.7]
[1762419545184,20.592,159.49,159.45,6.27155848]
[1762419545563,21.302,159.49,159.45,6.97155848]
[1762419545868,20.592,159.48,159.45,6.97155848]
[1762419546471,0.71,159.49,159.45,6.97155848]
[1762419546671,4.1109713,159.49,159.45,0.7]
[1762419547397,4.1109713,159.49,159.46,6.27116518]
[1762419547598,21.302,159.53,159.46,9.67213648]
[1762419547766,21.302,159.53,159.47,0.7]
[1762419547969,4.1109713,159.52,159.47,0.7]
[1762419548391,0.71,159.51,159.47,0.7]
[1762419548795,4.1109713,159.51,159.47,0.7]
[1762419549993,4.1109713,159.51,159.47,6.97066159]
[1762419550203,0.71,159.51,159.47,6.97066159]
[1762419550498,3.4009713,159.48,159.38,6.27116518]
[1762419550699,3.4009713,159.45,159.41,9.78882769]
[1762419551196,3.4009713,159.45,159.42,0.7]
[1762419552195,9.67216609,159.46,159.41,6.27289701]
[1762419552406,9.67216609,159.46,159.42,0.7]
[1762419552607,4.1109713,159.45,159.41,0.7]
[1762419553414,3.4009713,159.46,159.41,0.7]
[1762419553910,4.1109713,159.48,159.42,3.4009713]
[1762419554093,20.592,159.47,159.43,9.67331652]
[1762419554493,21.302,159.47,159.43,10.37331652]
[1762419554815,21.302,159.47,159.43,4.1009713]
[1762419555001,24.7029713,159.47,159.43,0.7]
[1762419555201,21.302,159.47,159.43,0.7]
[1762419555405,20.592,159.47,159.43,0.7]
[1762419556305,20.592,159.47,159.44,6.27195183]
[1762419556814,6.26802055,159.54,159.45,4.1009713]
[1762419556994,0.71,159.51,159.46,3.4009713]
[1762419557197,24.7029713,159.51,159.46,3.4009713]
[1762419557723,0.71,159.5,159.45,4.1009713]
[1762419558228,0.71,159.5,159.46,6.27116518]
[1762419558608,0.71,159.5,159.45,4.1009713]
[1762419559416,6.97963378,159.5,159.45,10.37239601]
[1762419560731,0.71,159.49,159.45,10.37239601]
[1762419561118,23.9929713,159.51,159.46,4.1009713]
[1762419561325,20.592,159.51,159.46,4.1009713]
[1762419561525,21.302,159.51,159.47,0.7]
[1762419562321,0.68,159.5,159.47,6.27077193]
[1762419562522,26.86121721,159.51,159.47,6.27077193]
[1762419562742,0.68,159.5,159.47,6.27077193]
[1762419565538,30.94218851,159.51,159.47,6.93077193]
[1762419565727,0.68,159.5,159.47,6.93077193]
[1762419565928,30.94218851,159.51,159.47,0.66]
[1762419566125,0.68,159.5,159.47,0.66]
[1762419567550,0.68,159.5,159.46,8.44888366]
[1762419567717,0.68,159.5,159.46,9.10888366]
[1762419567918,0.68,159.5,159.46,8.44888366]
[1762419568242,0.68,159.5,159.46,9.10888366]
[1762419570319,2.17777167,159.49,159.45,7.36]
[1762419570645,29.71938627,159.5,159.46,0.66]
[1762419571534,20.592,159.5,159.46,2.83777167]
[1762419571724,20.592,159.51,159.46,2.83777167]
[1762419571927,0.68,159.55,159.48,2.17777167]
[1762419572128,9.12565402,159.55,159.49,2.17777167]
[1762419572327,9.12565402,159.55,159.49,6.92986878]
[1762419572328,2.85777167,159.54,159.49,6.92986878]
[1762419572519,2.17777167,159.53,159.49,6.92986878]
[1762419572720,2.85777167,159.53,159.49,6.92986878]
[1762419573129,2.17777167,159.53,159.49,0.66]
[1762419573441,0.65359245,159.59,159.5,9.78882769]
[1762419573442,2.17777167,159.58,159.5,9.78882769]
[1762419573646,0.68,159.56,159.52,2.17777167]
[1762419574017,0.68,159.56,159.52,2.83777167]
[1762419574443,0.68,159.56,159.52,2.17777167]
[1762419574638,0.68,159.56,159.52,9.10647851]
[1762419575255,0.68,159.56,159.52,2.83777167]
[1762419575432,0.68,159.56,159.52,0.66]
[1762419575632,0.68,159.56,159.52,6.92876093]
[1762419575847,2.85777167,159.56,159.52,6.92876093]
[1762419576648,0.68,159.56,159.52,8.4465326]
[1762419576833,0.68,159.56,159.52,6.93876093]
[1762419577231,22.76977167,159.57,159.53,0.67]
[1762419577439,20.592,159.57,159.53,0.67]
[1762419577647,21.302,159.57,159.53,0.67]
[1762419578226,0.71,159.57,159.53,0.67]
[1762419578750,0.71,159.57,159.54,6.26802055]
[1762419579353,0.71,159.57,159.53,6.9383319]
[1762419580249,9.15463026,159.57,159.53,0.67]
[1762419580460,2.88777167,159.57,159.53,6.93837403]
[1762419580630,2.17777167,159.57,159.54,0.67]
[1762419580949,9.15431106,159.58,159.54,6.93790962]
[1762419581328,6.26653939,159.58,159.55,0.67]
[1762419581754,23.67977167,159.59,159.55,0.67]
[1762419581930,22.96977167,159.59,159.55,0.67]
[1762419582260,23.67977167,159.59,159.55,0.67]
[1762419582551,21.502,159.59,159.55,0.67]
[1762419582741,23.67977167,159.59,159.55,6.93738574]
[1762419582940,20.792,159.59,159.55,6.93738574]
[1762419583136,20.792,159.59,159.56,0.67]
[1762419584030,23.67977167,159.59,159.56,0.67]
[1762419584246,20.792,159.59,159.56,0.67]
[1762419584444,22.96977167,159.59,159.56,0.67]
[1762419585550,0.2,159.59,159.56,6.93721281]
[1762419585786,0.2,159.59,159.57,0.67]
[1762419586633,0.2,159.59,159.58,6.26644942]
[1762419587053,0.2,159.59,159.58,0.67]
[1762419588736,0.2,159.59,159.58,6.93644942]
[1762419589457,0.2,159.59,159.58,0.67]
[1762419589780,0.2,159.59,159.58,6.93644942]
[1762419592674,0.2,159.59,159.58,0.67]
[1762419593383,0.2,159.59,159.57,6.26682702]
[1762419593566,0.2,159.59,159.58,0.71]
[1762419594874,0.2,159.59,159.58,6.97644942]
[1762419595857,0.2,159.59,159.58,0.71]
[1762419596282,0.2,159.59,159.57,6.26683719]
[1762419596476,0.2,159.59,159.57,6.97683719]
[1762419596673,0.2,159.59,159.57,13.67683719]
[1762419600282,0.2,159.59,159.58,0.71]
[1762419600490,0.2,159.59,159.58,10.49882769]
[1762419601287,0.2,159.59,159.58,12.67315582]
[1762419601484,0.2,159.59,159.58,0.71]
[1762419602062,0.2,159.59,159.58,2.88432813]
[1762419602387,0.2,159.59,159.58,9.15077755]
[1762419603685,0.2,159.59,159.58,0.71]
[1762419603888,0.2,159.59,159.56,6.97710436]
[1762419604596,0.2,159.59,159.57,0.71]
[1762419605599,3.03432813,159.59,159.55,6.97757261]
[1762419605973,0.66,159.58,159.55,6.97757261]
[1762419606197,3.03432813,159.59,159.55,6.97757261]
[1762419606394,0.2,159.59,159.57,6.26684213]
[1762419606886,2.37432813,159.59,159.57,6.26684213]
[1762419607287,3.03432813,159.59,159.57,6.26684213]
[1762419607490,2.37432813,159.59,159.57,6.26684213]
[1762419607692,2.37432813,159.59,159.56,0.71]
[1762419608401,0.2,159.59,159.56,9.1514314]
[1762419608782,0.2,159.59,159.57,0.71]
[1762419609096,0.2,159.59,159.56,6.26710327]
[1762419609278,0.2,159.59,159.57,0.71]
[1762419609478,0.2,159.59,159.57,2.88432813]
[1762419609878,0.2,159.59,159.58,0.71]
[1762419611002,0.2,159.59,159.58,9.15077755]
[1762419612208,0.2,159.59,159.58,6.97644942]
[1762419612378,0.2,159.59,159.56,7.41]
[1762419612581,0.2,159.59,159.57,0.71]
[1762419612795,0.2,159.59,159.56,12.96720177]
[1762419612980,0.2,159.59,159.56,13.67720177]
[1762419613191,3.03432813,159.59,159.56,6.7]
[1762419613518,3.03432813,159.59,159.48,36.5825379]
[1762419613519,2.17432813,159.57,159.52,0.71]
[1762419614026,2.83432813,159.56,159.52,6.97868734]
[1762419614227,2.83432813,159.56,159.52,0.71]
[1762419614379,2.83432813,159.56,159.52,6.26877603]
[1762419614578,2.17432813,159.56,159.53,0.71]
[1762419614975,2.17432813,159.56,159.51,8.44345146]
[1762419614976,2.83432813,159.56,159.51,8.44345146]
[1762419615207,2.83432813,159.56,159.52,0.71]
[1762419616202,0.66,159.55,159.51,6.26910251]
[1762419616405,2.83432813,159.55,159.51,6.26910251]
[1762419616609,2.83432813,159.55,159.51,6.97910251]
[1762419616780,2.17432813,159.56,159.51,6.26910251]
[1762419616984,2.17432813,159.57,159.53,6.26841346]
[1762419617314,6.46609665,159.59,159.54,2.17432813]
[1762419617315,2.37432813,159.59,159.54,2.17432813]
[1762419617516,0.2,159.59,159.54,2.88432813]
[1762419617691,3.03432813,159.59,159.55,0.71]
[1762419618786,3.03432813,159.59,159.55,6.97744896]
[1762419620908,0.2,159.59,159.56,2.88432813]
[1762419621295,0.2,159.59,159.57,0.71]
[1762419621808,0.2,159.59,159.57,2.88432813]
[1762419622190,0.2,159.59,159.58,2.87432813]
[1762419622884,0.2,159.59,159.58,6.96644942]
[1762419623706,0.2,159.59,159.58,6.26644942]
[1762419623924,0.91,159.59,159.56,6.26723489]
[1762419624100,0.2,159.59,159.56,6.96723489]
[1762419625203,0.2,159.59,159.56,22.63532212]
[1762419625520,0.2,159.59,159.57,0.7]
[1762419627129,0.2,159.59,159.58,6.26644942]
[1762419628141,0.2,159.59,159.56,6.96723489]
[1762419628539,0.2,159.59,159.57,0.7]
[1762419629340,0.2,159.59,159.58,6.26644942]
[1762419629652,0.2,159.59,159.58,9.66484577]
[1762419629848,0.2,159.59,159.58,10.36484577]
[1762419631344,0.2,159.59,159.58,6.96644942]
[1762419631549,0.2,159.59,159.58,10.36484577]
[1762419632348,0.2,159.59,159.58,20.15367346]
[1762419632857,0.2,159.59,159.58,26.85367346]
[1762419634145,0.2,159.64,159.6,9.78882769]
[1762419634344,0.2,159.64,159.63,3.39839635]
[1762419634753,0.2,159.64,159.63,4.09839635]
[1762419635472,0.2,159.64,159.63,20.15171066]
[1762419637265,0.81,159.69,159.63,43.69937588]
[1762419637266,0.1,159.69,159.63,43.69937588]
[1762419637584,0.1,159.69,159.65,13.18722404]
[1762419637752,1e-08,159.66,159.65,13.18722404]
[1762419638072,1e-08,159.66,159.65,34.44922404]
[1762419638384,1e-08,159.66,159.65,41.70922404]
[1762419638989,1e-08,159.72,159.66,31.05082769]
[1762419639273,1e-08,159.72,159.71,19.44857273]
[1762419639457,1e-08,159.72,159.71,26.70857273]
[1762419639649,1e-08,159.72,159.71,27.37857273]
[1762419639849,1e-08,159.72,159.71,23.98017638]
[1762419640070,1e-08,159.72,159.71,27.37857273]
[1762419640449,1e-08,159.72,159.71,28.00470759]
[1762419641265,1e-08,159.72,159.71,24.60631124]
[1762419641674,1e-08,159.72,159.71,28.00470759]
[1762419642547,1e-08,159.72,159.71,27.37857273]
[1762419644461,1e-08,159.72,159.71,26.70857273]
[1762419644658,1e-08,159.72,159.71,37.64082769]
[1762419644859,1e-08,159.72,159.71,43.90217638]
[1762419645262,1e-08,159.72,159.71,47.97057273]
[1762419645456,1e-08,159.72,159.71,44.57217638]
[1762419645778,1e-08,159.72,159.71,47.97057273]
[1762419647076,1e-08,159.72,159.71,44.57217638]
[1762419647258,1e-08,159.72,159.71,47.97057273]
[1762419648279,1e-08,159.72,159.71,40.04057273]
[1762419648480,1e-08,159.72,159.71,36.64217638]
[1762419651369,1e-08,159.72,159.71,16.05017638]
[1762419653988,0.66000001,159.72,159.69,20.592]
[1762419654359,4.05839636,159.72,159.69,6.26200625]
[1762419654778,4.05839636,159.72,159.65,6.26363001]
[1762419654779,3.39839635,159.7,159.65,6.26363001]
[1762419654971,3.39839635,159.69,159.65,6.26363001]
[1762419655478,4.05839635,159.7,159.65,6.96363001]
[1762419655678,4.05839635,159.69,159.65,6.96363001]
[1762419655888,3.39839635,159.69,159.65,6.96363001]
[1762419656306,0.66,159.69,159.65,6.96363001]
[1762419656468,0.66,159.68,159.64,13.18722404]
[1762419656667,0.66,159.68,159.64,13.88722404]
[1762419657072,0.66,159.68,159.64,20.15122412]
[1762419657604,0.66,159.68,159.64,19.45122412]
[1762419657783,3.39839635,159.7,159.65,0.7]
[1762419657982,0.66,159.69,159.65,0.7]
[1762419658395,0.66,159.7,159.66,9.66170588]
[1762419658565,3.39839636,159.72,159.66,25.31997971]
[1762419658773,0.66,159.69,159.66,21.92158336]
[1762419660003,0.66,159.69,159.66,6.26330953]
[1762419660211,10.32061541,159.69,159.63,38.65039635]
[1762419660409,3.39839635,159.65,159.59,3.39839635]
[1762419660573,3.39839635,159.65,159.6,3.39839635]
[1762419660921,4.05839635,159.68,159.63,3.39839635]
[1762419661071,4.05839635,159.68,159.63,4.09839635]
[1762419661271,0.66,159.67,159.63,4.09839635]
[1762419661688,0.66,159.71,159.65,3.39839635]
[1762419661892,0.66,159.7,159.66,6.26330953]
[1762419662188,0.66,159.7,159.64,16.05275566]
[1762419662393,3.39839635,159.67,159.63,9.78882769]
[1762419662772,4.05839635,159.67,159.63,9.78882769]
[1762419663185,3.39839635,159.66,159.63,9.78882769]
[1762419663401,4.05839635,159.66,159.62,21.92694276]
[1762419663708,3.39839635,159.63,159.6,6.26527783]
[1762419664270,3.39839635,159.63,159.59,16.05484239]
[1762419664474,4.05839635,159.62,159.59,16.05484239]
[1762419664919,3.39839635,159.63,159.59,16.75484239]
[1762419665121,3.39839635,159.65,159.6,4.09839635]
[1762419665529,0.66,159.64,159.6,4.09839635]
[1762419666336,0.66,159.64,159.61,6.26527159]
[1762419667234,20.592,159.68,159.61,6.26527159]
[1762419667525,3.39839635,159.65,159.61,6.26527159]
[1762419668015,4.05839635,159.65,159.61,6.26527159]
[1762419668328,0.66,159.64,159.61,6.26527159]
[1762419669338,3.39839635,159.63,159.6,12.96553041]
[1762419669711,3.39839635,159.64,159.6,12.96553041]
[1762419669907,0.66,159.63,159.6,12.96553041]
[1762419671410,0.66,159.63,159.6,13.66553041]
[1762419671822,3.39839635,159.66,159.61,4.09839635]
[1762419672003,0.66,159.65,159.6,32.72808716]
[1762419672209,4.05839635,159.65,159.6,32.72808716]
[1762419672410,3.39839635,159.64,159.6,6.7]
[1762419672619,3.39839635,159.63,159.6,6.7]
[1762419672905,3.39839635,159.62,159.59,16.05479751]
[1762419673106,4.05839635,159.62,159.59,16.05479751]
[1762419674205,0.66,159.62,159.59,16.05479751]
[1762419674806,0.66,159.62,159.59,16.75479751]
[1762419675421,4.05839635,159.64,159.6,0.7]
[1762419675721,42.51072648,159.7,159.61,21.92845058]
[1762419675939,4.05839635,159.67,159.62,3.39839635]
[1762419676313,0.66,159.66,159.62,3.39839635]
[1762419676518,4.05839635,159.66,159.61,33.28684693]
[1762419677224,0.66,159.66,159.62,4.09839635]
[1762419677612,0.66,159.66,159.63,6.26448662]
[1762419682032,4.05839635,159.66,159.63,6.26448662]
[1762419682611,4.11839635,159.65,159.61,34.552]
[1762419683013,6.26299098,159.67,159.61,27.292]
[1762419683014,3.39839635,159.62,159.61,27.292]
[1762419683221,3.39839635,159.63,159.61,27.292]
[1762419683460,4.11839635,159.63,159.61,27.292]
[1762419683928,4.11839635,159.62,159.61,27.292]
[1762419685030,4.11839635,159.62,159.61,20.592]
[1762419686122,10.38327543,159.62,159.61,20.592]
[1762419687714,10.38327543,159.62,159.59,30.38082769]
[1762419687915,3.39839635,159.6,159.59,30.38082769]
[1762419688318,2.89586244,159.6,159.59,30.38082769]
[1762419689134,5.07172488,159.6,159.59,30.38082769]
[1762419689335,5.07172488,159.6,159.5,7.96]
[1762419689519,2.17586244,159.54,159.53,20.592]
[1762419689923,2.89586244,159.54,159.53,20.592]
[1762419690235,2.89586244,159.54,159.52,6.26876806]
[1762419690545,2.89586244,159.54,159.51,6.26908688]
[1762419691039,2.17586244,159.53,159.51,6.26908688]
[1762419691423,2.17586244,159.53,159.52,9.78882769]
[1762419692040,2.17586244,159.53,159.5,16.05837004]
[1762419692246,2.89586244,159.53,159.52,30.38082769]
[1762419692820,6.26781219,159.55,159.52,30.38082769]
[1762419692821,2.17586244,159.54,159.53,9.78882769]
[1762419693038,2.89586244,159.57,159.56,30.38082769]
[1762419693942,2.17586244,159.58,159.57,9.78882769]
[1762419694648,2.89586244,159.58,159.57,9.78882769]
[1762419695535,15.66294961,159.62,159.57,9.78882769]
[1762419695536,2.17586244,159.6,159.59,30.38082769]
[1762419695930,2.89586244,159.6,159.59,30.38082769]
[1762419696935,2.17586244,159.6,159.59,30.38082769]
[1762419697738,2.84586244,159.6,159.59,30.38082769]
[1762419698046,2.17586244,159.6,159.59,30.38082769]
[1762419698235,2.17586244,159.61,159.59,30.38082769]
[1762419698641,2.84586244,159.61,159.59,30.38082769]
[1762419699241,2.17586244,159.6,159.59,30.38082769]
[1762419699628,6.26460167,159.63,159.59,37.35688446]
[1762419699629,2.17586244,159.62,159.59,37.35688446]
[1762419699846,2.84586244,159.62,159.59,36.64688446]
[1762419700146,2.84586244,159.61,159.59,30.38082769]
[1762419701546,6.26454267,159.63,159.59,36.64686625]
[1762419701730,2.17586244,159.61,159.59,36.64686625]
[1762419701930,2.84586244,159.62,159.59,36.64686625]
[1762419702433,2.17586244,159.62,159.59,30.38082769]
[1762419702753,2.84586244,159.62,159.59,30.38082769]
[1762419702933,2.84586244,159.62,159.59,36.64684742]
[1762419703133,0.67,159.61,159.59,36.64684742]
[1762419703331,2.84586244,159.62,159.59,36.64684742]
[1762419704552,2.17586244,159.62,159.59,37.35684742]
[1762419705241,2.17586244,159.61,159.59,30.38082769]
[1762419705432,2.84586244,159.61,159.59,30.38082769]
[1762419706451,2.17586244,159.61,159.59,30.38082769]
[1762419707134,2.17586244,159.62,159.59,37.3568767]
[1762419707634,2.17586244,159.61,159.59,37.3568767]
[1762419707838,2.17586244,159.61,159.59,36.6468767]
[1762419708257,2.17586244,159.61,159.59,30.38082769]
[1762419708464,2.17586244,159.6,159.59,30.38082769]
[1762419708656,2.84586244,159.6,159.59,30.38082769]
[1762419708855,11.5493122,159.6,159.59,30.38082769]
[1762419710664,17.81497636,159.6,159.59,30.38082769]
[1762419710862,17.81497636,159.6,159.43,36.76211149]
[1762419711047,50.0,159.59,159.52,20.592]
[1762419711246,10.8793122,159.53,159.47,0.2]
[1762419711455,2.17586244,159.48,159.47,0.2]
[1762419711850,2.84586244,159.48,159.47,0.2]
[1762419712241,2.17586244,159.48,159.47,0.2]
[1762419712646,2.89586244,159.48,159.47,0.2]
[1762419712961,2.17586244,159.48,159.47,30.58082769]
[1762419714551,2.89586244,159.48,159.47,30.58082769]
[1762419714937,9.16624117,159.48,159.47,30.58082769]
[1762419715142,2.89586244,159.48,159.47,30.58082769]
[1762419715544,9.16624117,159.48,159.47,30.58082769]
[1762419718948,2.89586244,159.48,159.47,30.58082769]
[1762419719274,9.16624117,159.48,159.47,30.58082769]
[1762419720656,6.99037873,159.48,159.47,30.58082769]
[1762419720884,2.89586244,159.48,159.47,30.58082769]
[1762419721050,8.44585391,159.49,159.48,9.78882769]
[1762419721550,2.17586244,159.5,159.48,30.38082769]
[1762419721755,9.16545976,159.5,159.48,30.38082769]
[1762419721953,2.89586244,159.49,159.48,20.592]
[1762419722973,9.16584801,159.49,159.48,20.592]
[1762419724371,6.98998557,159.49,159.48,20.592]
[1762419725153,0.72,159.53,159.49,20.592]
[1762419725460,6.26802055,159.54,159.49,23.45786244]
[1762419725781,0.72,159.53,159.49,21.282]
[1762419725991,2.89586244,159.53,159.49,20.592]
[1762419726167,0.72,159.53,159.49,20.592]
[1762419726776,0.72,159.53,159.49,23.45786244]
[1762419726972,0.72,159.53,159.49,29.72775541]
[1762419727492,6.98853037,159.53,159.49,20.592]
[1762419727700,6.98853037,159.53,159.49,21.282]
[1762419729287,2.17586244,159.5,159.49,20.592]
[1762419729768,2.89586244,159.5,159.49,20.592]
[1762419731205,9.16545491,159.5,159.49,20.592]
[1762419733194,6.26874679,159.53,159.49,21.282]
[1762419733373,2.17586244,159.54,159.49,21.282]
[1762419733374,6.26808687,159.54,159.5,0.69]
[1762419733575,2.17586244,159.56,159.5,2.86586244]
[1762419733781,9.16279407,159.57,159.51,2.17586244]
[1762419733981,9.16279407,159.57,159.51,2.86586244]
[1762419734181,9.16279407,159.57,159.52,0.69]
[1762419734486,11.93461442,159.57,159.52,0.69]
[1762419734690,0.72,159.56,159.52,0.69]
[1762419735081,11.93461442,159.57,159.55,20.592]
[1762419735264,6.98693163,159.57,159.55,20.592]
[1762419735672,6.38768279,159.56,159.5,21.282]
[1762419735887,0.72,159.56,159.5,26.25968279]
[1762419736094,0.72,159.56,159.51,0.69]
[1762419736393,6.38768279,159.56,159.51,0.69]
[1762419736582,27.60171976,159.57,159.51,0.69]
[1762419736784,28.32171976,159.57,159.51,0.69]
[1762419737384,28.32171976,159.57,159.54,20.592]
[1762419737587,12.65461442,159.57,159.54,20.592]
[1762419737982,12.65461442,159.57,159.52,0.69]
[1762419738292,12.65461442,159.57,159.53,20.592]
[1762419738293,6.38768279,159.56,159.53,20.592]
[1762419738591,6.98693163,159.57,159.53,20.592]
[1762419738783,12.65461442,159.57,159.53,21.282]
[1762419738992,12.65461442,159.57,159.54,20.592]
[1762419739169,6.38768279,159.57,159.54,20.592]
[1762419739370,65.6653759,159.59,159.56,20.592]
[1762419739371,5.66768279,159.59,159.56,20.592]
[1762419739695,15.45651048,159.62,159.57,0.69]
[1762419740202,16.17651048,159.62,159.57,21.282]
[1762419740793,15.45651048,159.62,159.58,0.69]
[1762419741104,9.78882769,159.62,159.58,0.69]
[1762419741612,16.05405293,159.62,159.58,0.69]
[1762419743788,16.05405293,159.62,159.57,26.85878587]
[1762419743789,5.66768279,159.59,159.56,20.592]
[1762419743996,5.66768279,159.58,159.56,20.592]
[1762419744204,5.66768279,159.57,159.54,20.592]
[1762419744399,5.66768279,159.56,159.54,20.592]
[1762419744909,5.66768279,159.56,159.53,20.592]
[1762419744910,5.66768279,159.55,159.53,20.592]
[1762419745297,11.9356119,159.55,159.53,20.592]
[1762419746010,11.9356119,159.55,159.52,20.592]
[1762419746011,5.66768279,159.54,159.52,20.592]
[1762419746192,5.66768279,159.54,159.53,20.592]
[1762419746590,5.66768279,159.54,159.51,0.65]
[1762419746796,5.66768279,159.54,159.52,20.592]
[1762419747195,5.66768279,159.54,159.51,0.65]
[1762419747714,11.93575353,159.54,159.52,20.592]
[1762419748111,5.66768279,159.54,159.51,0.65]
[1762419748289,11.93536558,159.55,159.51,0.65]
[1762419748617,5.66768279,159.54,159.51,21.242]
[1762419748825,5.66768279,159.53,159.51,21.242]
[1762419749028,5.66768279,159.52,159.51,20.592]
[1762419749598,11.9364892,159.52,159.51,20.592]
[1762419750097,11.9364892,159.52,159.49,20.592]